fUSD/lending_fUSD_20260123
["ID","MTS","AMOUNT","RATE_DAILY","PERIOD"]
[403080858,1769135431980,-618.0,0.00014678,2]
[403080860,1769135431989,-500.0,0.00014678,2]
[403080862,1769135431998,-150.0,0.00014678,2]
[403080864,1769135432007,-500.0,0.00014678,2]
[403080866,1769135432015,-500.0,0.00014678,2]
[403080868,1769135432025,-150.0,0.00014678,2]
[403080870,1769135432034,-511.21795012,0.00014678,2]
[403080872,1769135432043,-216.50139764,0.00014678,2]
[403080874,1769135432053,-500.0,0.00014678,2]
[403080876,1769135432062,-500.0,0.00014678,2]
[403080878,1769135432071,-2576.6,0.00014681,2]
[403080880,1769135432080,-500.0,0.00014688,2]
[403080882,1769135432090,-500.0,0.00014688,2]
[403080884,1769135432103,-500.0,0.00014688,2]
[403080886,1769135432114,-173.9482651,0.00014689,2]
[403080888,1769135432123,-198.49399628,0.00014689,2]
[403080890,1769135432133,-1629.84897116,0.00014689,2]
[403080892,1769135432143,-256.06883016,0.00014689,2]
[403080894,1769135432152,-200.0,0.00014689,2]
[403080896,1769135432161,-151.0,0.00014689,2]
[403080899,1769135432171,-151.0,0.00014689,2]
[403080901,1769135432181,-151.0,0.00014689,2]
[403080903,1769135432190,-151.0,0.00014689,2]
[403080905,1769135432200,-151.0,0.00014689,2]
[403080907,1769135432209,-151.0,0.00014689,2]
[403080909,1769135432219,-151.0,0.00014689,2]
[403080911,1769135432228,-151.0,0.00014689,2]
[403080913,1769135432238,-151.0,0.00014689,2]
[403080915,1769135432249,-151.0,0.00014689,2]
[403080917,1769135432261,-151.0,0.00014689,2]
[403080919,1769135432271,-1000.0,0.00014689,2]
[403080921,1769135432280,-175.4760292,0.00014689,2]
[403080923,1769135432290,-600.0,0.00014689,2]
[403080925,1769135432300,-302.50327915,0.00014689,2]
[403080927,1769135432310,-500.0,0.0001469,2]
[403080929,1769135432320,-2500.0,0.0001469,2]
[403080931,1769135432331,-2576.6,0.00014719,2]
[403080932,1769135432341,-500.0,0.00014733,2]
[403080933,1769135432350,-392.44654425,0.00014733,2]
[403080934,1769135432359,-618.0,0.00014733,2]
[403080936,1769135432369,-535.04183506,0.00014733,2]
[403080937,1769135432378,-150.0,0.00014733,2]
[403080938,1769135432388,-500.0,0.00014733,2]
[403080939,1769135432397,-302.1982999,0.00014733,2]
[403080940,1769135432407,-201.9785832,0.00014733,2]
[403080941,1769135432416,-500.0,0.00014733,2]
[403080942,1769135432425,-466.96069685,0.00014733,2]
[403080943,1769135432434,-2576.6,0.00014756,2]
[403080944,1769135432444,-500.0,0.00014788,2]
[403080945,1769135432453,-618.0,0.00014788,2]
[403080946,1769135432462,-163.29047926,0.00014788,2]
[403080947,1769135432472,-500.0,0.00014788,2]
[403080948,1769135432481,-500.0,0.00014788,2]
[403080949,1769135432494,-483.75906347,0.00014788,2]
[403080950,1769135432504,-500.0,0.00014788,2]
[403080951,1769135432514,-500.0,0.00014788,2]
[403080952,1769135432524,-500.0,0.00014788,2]
[403080953,1769135432535,-500.0,0.00014788,2]
[403080954,1769135432544,-335.15027004,0.00014788,2]
[403080955,1769135432554,-500.0,0.00014788,2]
[403080956,1769135432564,-500.0,0.00014788,2]
[403080957,1769135432573,-500.0,0.00014788,2]
[403080958,1769135432582,-180.43658035,0.00014788,2]
[403080959,1769135432591,-441.63337288,0.00014788,2]
[403080960,1769135432601,-815.2056167,0.00014788,2]
[403080961,1769135432610,-815.2056167,0.00014788,2]
[403080962,1769135432620,-815.2056167,0.00014788,2]
[403080963,1769135432629,-815.2056167,0.00014788,2]
[403080964,1769135432638,-815.2056167,0.00014788,2]
[403080965,1769135432647,-815.2056167,0.00014788,2]
[403080966,1769135432656,-815.2056167,0.00014788,2]
[403080967,1769135432666,-815.2056167,0.00014788,2]
[403080968,1769135432675,-815.2056167,0.00014788,2]
[403080969,1769135432684,-815.2056167,0.00014788,2]
[403080970,1769135432695,-815.2056167,0.00014788,2]
[403080971,1769135432704,-815.2056167,0.00014788,2]
[403080972,1769135432713,-815.2056167,0.00014788,2]
[403080973,1769135432722,-815.2056167,0.00014788,2]
[403080974,1769135432732,-815.2056167,0.00014788,2]
[403080975,1769135432741,-815.2056167,0.00014788,2]
[403080976,1769135432750,-815.2056167,0.00014788,2]
[403080977,1769135432759,-815.2056167,0.00014788,2]
[403080978,1769135432769,-815.2056167,0.00014788,2]
[403080979,1769135432779,-815.2056167,0.00014788,2]
[403080980,1769135432789,-815.2056167,0.00014788,2]
[403080981,1769135432798,-815.2056167,0.00014788,2]
[403080982,1769135432808,-815.2056167,0.00014788,2]
[403080983,1769135432817,-815.2056167,0.00014788,2]
[403080984,1769135432826,-815.2056167,0.00014788,2]
[403080985,1769135432836,-815.2056167,0.00014788,2]
[403080986,1769135432845,-815.2056167,0.00014788,2]
[403080987,1769135432854,-815.2056167,0.00014788,2]
[403080988,1769135432863,-815.2056167,0.00014788,2]
[403080989,1769135432877,-815.2056167,0.00014788,2]
[403080990,1769135432886,-815.2056167,0.00014788,2]
[403080991,1769135432895,-815.2056167,0.00014788,2]
[403080992,1769135432905,-815.2056167,0.00014788,2]
[403080993,1769135432915,-815.2056167,0.00014788,2]
[403080994,1769135432924,-815.2056167,0.00014788,2]
[403080995,1769135432934,-815.2056167,0.00014788,2]
[403080996,1769135432943,-815.2056167,0.00014788,2]
[403080997,1769135432953,-815.2056167,0.00014788,2]
[403080998,1769135432963,-815.2056167,0.00014788,2]
[403080999,1769135432972,-815.2056167,0.00014788,2]
[403081000,1769135432982,-815.2056167,0.00014788,2]
[403081001,1769135432991,-815.2056167,0.00014788,2]
[403081002,1769135433001,-815.2056167,0.00014788,2]
[403081003,1769135433011,-444.03243013,0.00014788,2]
[403081004,1769135433021,-800.38369641,0.00014788,2]
[403081005,1769135433030,-800.38369641,0.00014788,2]
[403081006,1769135433039,-800.38369641,0.00014788,2]
[403081007,1769135433049,-800.38369641,0.00014788,2]
[403081008,1769135433059,-800.38369641,0.00014788,2]
[403081009,1769135433068,-800.38369641,0.00014788,2]
[403081010,1769135433077,-800.38369641,0.00014788,2]
[403081011,1769135433086,-800.38369641,0.00014788,2]
[403081012,1769135433095,-800.38369641,0.00014788,2]
[403081013,1769135433104,-800.38369641,0.00014788,2]
[403081014,1769135433114,-800.38369641,0.00014788,2]
[403081015,1769135433131,-2576.6,0.00014793,2]
[403081016,1769135433141,-166.67,0.00014806,2]
[403081017,1769135433150,-2576.6,0.0001483,2]
[403081018,1769135433159,-200.0,0.00014836,2]
[403081019,1769135433169,-500.0,0.00014843,2]
[403081020,1769135433178,-618.0,0.00014843,2]
[403081021,1769135433187,-500.0,0.00014843,2]
[403081022,1769135433196,-279.94626957,0.00014843,2]
[403081023,1769135433206,-11020.67567361,0.00014868,2]
[403081024,1769135433215,-500.0,0.00014898,2]
[403081025,1769135433224,-618.0,0.00014898,2]
[403081026,1769135433233,-500.0,0.00014898,2]
[403081027,1769135433243,-500.0,0.00014952,2]
[403081028,1769135433254,-618.0,0.00014952,2]
[403081029,1769135433267,-500.0,0.00014952,2]
[403081030,1769135433276,-14397.38240789,0.00014957,2]
[403081031,1769135433286,-238.6411453,0.00014964,2]
[403081032,1769135433297,-163.59,0.00015,2]
[403081033,1769135433306,-839.88891229,0.00015,2]
[403081034,1769135433317,-16102.32634698,0.00015,2]
[403081035,1769135433328,-500.0,0.00015007,2]
[403081036,1769135433338,-618.0,0.00015007,2]
[403081037,1769135433347,-500.0,0.00015007,2]
[403081038,1769135433356,-468.07239009,0.00015062,2]
[403081039,1769135433366,-618.0,0.00015062,2]
[403081040,1769135433376,-500.0,0.00015062,2]
[403081041,1769135433385,-3091.92575926,0.00015112,2]
[403081042,1769135433394,-618.0,0.00015117,2]
[403081043,1769135433403,-439.2125462,0.00015117,2]
[403081044,1769135433413,-618.0,0.00015172,2]
[403081045,1769135433422,-618.0,0.00015226,2]
[403081046,1769135433431,-500.0,0.00015237,2]
[403081047,1769135433440,-200.0,0.00015237,2]
[403081048,1769135433449,-208.30566169,0.00015237,2]
[403081049,1769135433458,-11020.67567361,0.00015247,2]
[403081050,1769135433467,-618.0,0.00015281,2]
[403081051,1769135433476,-170.21621485,0.00015312,2]
[403081052,1769135433485,-14397.38240789,0.00015325,2]
[403081053,1769135433495,-618.0,0.00015336,2]
[403081054,1769135433505,-166.66,0.00015384,2]
[403081055,1769135433514,-618.0,0.00015391,2]
[403081056,1769135433523,-618.0,0.00015446,2]
[403081057,1769135433532,-618.0,0.000155,2]
[403081058,1769135433541,-618.0,0.00015555,2]
[403081059,1769135433551,-618.0,0.0001561,2]
[403081060,1769135433560,-166.67,0.0001562,2]
[403081061,1769135433569,-453.49767638,0.00015625,5]
[403081062,1769135433578,-11020.67567361,0.00015626,2]
[403081063,1769135433588,-749.33737699,0.00015659,5]
[403081064,1769135433597,-1015.06293574,0.00015659,5]
[403081065,1769135433607,-177.93699463,0.00015659,5]
[403081066,1769135433617,-174.61919141,0.0001566,2]
[403081067,1769135433626,-854.2589148,0.0001566,2]
[403081068,1769135433636,-3210.0,0.0001566,2]
[403081069,1769135433647,-250.0,0.0001566,2]
[403081070,1769135433657,-250.0,0.0001566,2]
[403081071,1769135433666,-250.0,0.0001566,2]
[403081072,1769135433675,-250.0,0.0001566,2]
[403081073,1769135433684,-250.0,0.0001566,2]
[403081074,1769135433694,-2809.69279367,0.0001566,2]
[403081075,1769135433703,-250.0,0.0001566,2]
[403081076,1769135433712,-250.0,0.0001566,2]
[403081077,1769135433721,-250.0,0.0001566,2]
[403081078,1769135433730,-250.0,0.0001566,2]
[403081079,1769135433740,-250.0,0.0001566,2]
[403081080,1769135433749,-250.0,0.0001566,2]
[403081081,1769135433759,-250.0,0.0001566,2]
[403081082,1769135433768,-334.90402274,0.0001566,2]
[403081083,1769135433777,-263.75534005,0.0001566,2]
[403081084,1769135433786,-500.0,0.0001566,2]
[403081085,1769135433795,-500.0,0.0001566,2]
[403081086,1769135433804,-500.0,0.0001566,2]
[403081087,1769135433814,-500.0,0.0001566,2]
[403081088,1769135433823,-500.0,0.0001566,2]
[403081089,1769135433833,-500.0,0.0001566,2]
[403081090,1769135433842,-500.0,0.0001566,2]
[403081091,1769135433851,-500.0,0.0001566,2]
[403081092,1769135433861,-322.6107,0.0001566,2]
[403081093,1769135433870,-500.0,0.0001566,2]
[403081094,1769135433879,-500.0,0.0001566,2]
[403081095,1769135433889,-500.0,0.0001566,2]
[403081096,1769135433899,-500.0,0.0001566,2]
[403081097,1769135433908,-500.0,0.0001566,2]
[403081098,1769135433917,-3119.75700278,0.0001566,2]
[403081099,1769135433927,-500.0,0.0001566,2]
[403081100,1769135433936,-500.0,0.0001566,2]
[403081101,1769135433945,-500.0,0.0001566,2]
[403081102,1769135433954,-500.0,0.0001566,2]
[403081103,1769135433964,-500.0,0.0001566,2]
[403081104,1769135433973,-500.0,0.0001566,2]
[403081105,1769135433982,-500.0,0.0001566,2]
[403081106,1769135433991,-500.0,0.0001566,2]
[403081107,1769135433999,-500.0,0.0001566,2]
[403081108,1769135434009,-500.0,0.0001566,2]
[403081109,1769135434018,-554.56597897,0.0001566,2]
[403081110,1769135434026,-500.0,0.0001566,2]
[403081111,1769135434035,-500.0,0.0001566,2]
[403081112,1769135434045,-151.0,0.0001566,2]
[403081113,1769135434054,-500.0,0.0001566,2]
[403081114,1769135434064,-500.0,0.0001566,2]
[403081115,1769135434073,-151.0,0.0001566,2]
[403081116,1769135434082,-500.0,0.0001566,2]
[403081117,1769135434091,-500.0,0.0001566,2]
[403081118,1769135434099,-151.0,0.0001566,2]
[403081119,1769135434108,-500.0,0.0001566,2]
[403081120,1769135434118,-500.0,0.0001566,2]
[403081121,1769135434127,-151.0,0.0001566,2]
[403081122,1769135434136,-500.0,0.0001566,2]
[403081123,1769135434146,-500.0,0.0001566,2]
[403081124,1769135434155,-151.0,0.0001566,2]
[403081125,1769135434164,-500.0,0.0001566,2]
[403081126,1769135434173,-500.0,0.0001566,2]
[403081127,1769135434181,-151.0,0.0001566,2]
[403081128,1769135434190,-500.0,0.0001566,2]
[403081129,1769135434199,-500.0,0.0001566,2]
[403081130,1769135434208,-151.0,0.0001566,2]
[403081131,1769135434217,-500.0,0.0001566,2]
[403081132,1769135434226,-151.0,0.0001566,2]
[403081133,1769135434235,-500.0,0.0001566,2]
[403081134,1769135434244,-151.0,0.0001566,2]
[403081135,1769135434256,-500.0,0.0001566,2]
[403081136,1769135434265,-151.0,0.0001566,2]
[403081137,1769135434274,-500.0,0.0001566,2]
[403081138,1769135434283,-151.0,0.0001566,2]
[403081139,1769135434294,-743.50770149,0.0001566,2]
[403081140,1769135434302,-250.0,0.0001566,2]
[403081141,1769135434311,-250.0,0.0001566,2]
[403081142,1769135434321,-250.0,0.0001566,2]
[403081143,1769135434330,-250.0,0.0001566,2]
[403081144,1769135434339,-250.0,0.0001566,2]
[403081145,1769135434348,-250.0,0.0001566,2]
[403081146,1769135434357,-250.0,0.0001566,2]
[403081147,1769135434366,-250.0,0.0001566,2]
[403081148,1769135434376,-250.0,0.0001566,2]
[403081149,1769135434385,-250.0,0.0001566,2]
[403081150,1769135434401,-250.0,0.0001566,2]
[403081151,1769135434413,-618.0,0.00015665,2]
[403081152,1769135434423,-14397.38240789,0.00015693,2]
[403081153,1769135434432,-166.66,0.00015708,2]
[403081154,1769135434441,-255.0,0.00015711,2]
[403081155,1769135434450,-500.0,0.00015714,3]
[403081156,1769135434460,-618.0,0.00015719,2]
[403081157,1769135434470,-696.96,0.00015744,2]
[403081158,1769135434479,-345.0,0.00015753,2]
[403081159,1769135434488,-622.39630802,0.00015774,2]
[403081160,1769135434498,-2355.09,0.00015784,2]
[403081161,1769135434508,-500.0,0.00015785,2]
[403081162,1769135434518,-316.60667954,0.00015785,2]
[403081163,1769135434528,-456.88,0.00015895,2]
[403081164,1769135434538,-200.0,0.00015914,2]
[403081165,1769135434549,-250.0,0.00015938,2]
[403081166,1769135434559,-420.0,0.00015972,2]
[403081167,1769135434569,-237.0,0.00015972,2]
[403081168,1769135434579,-11020.67567361,0.00016005,2]
[403081169,1769135434590,-200.0,0.00016032,2]
[403081170,1769135434600,-166.66,0.00016032,2]
[403081171,1769135434610,-1680.0,0.00016047,2]
[403081172,1769135434621,-2400.73332691,0.00016048,2]
[403081173,1769135434631,-300.0,0.00016048,2]
[403081174,1769135434640,-600.0,0.00016048,2]
[403081175,1769135434650,-250.0,0.00016048,2]
[403081176,1769135434660,-195.0,0.00016048,2]
[403081177,1769135434670,-14397.38240789,0.00016061,2]
[403081178,1769135434679,-19623.63,0.00016067,2]
[403081179,1769135434689,-2500.0,0.00016158,2]
[403081180,1769135434699,-300.0,0.00016158,2]
[403081181,1769135434709,-5074.55502965,0.00016158,2]
[403081182,1769135434719,-303.06624798,0.00016158,2]
[403081183,1769135434728,-195.0,0.00016158,2]
[403081184,1769135434738,-2500.0,0.00016158,2]
[403081185,1769135434748,-600.0,0.00016158,2]
[403081186,1769135434759,-195.0,0.00016158,2]
[403081187,1769135434769,-5000.00958222,0.000162,5]
[403081188,1769135434778,-181.08010149,0.00016208,2]
[403081189,1769135434788,-885.86649465,0.00016208,2]
[403081190,1769135434798,-303.75520523,0.00016208,2]
[403081191,1769135434808,-386.02,0.00016248,2]
[403081192,1769135434818,-500.0,0.00016333,2]
[403081193,1769135434828,-166.66,0.00016356,2]
[403081194,1769135434837,-11020.67567361,0.00016384,2]
[403081195,1769135434848,-14397.38240789,0.00016428,2]
[403081196,1769135434857,-166.67,0.00016435,2]
[403081197,1769135434867,-500.0,0.00016438,2]
[403081198,1769135434877,-500.0,0.00016438,2]
[403081199,1769135434886,-500.0,0.00016438,2]
[403081200,1769135434896,-500.0,0.00016438,2]
[403081201,1769135434906,-250.0,0.00016438,2]
[403081202,1769135434915,-500.0,0.00016438,2]
[403081203,1769135434925,-165.24,0.0001644,2]
[403081204,1769135434936,-500.0,0.00016493,2]
[403081205,1769135434946,-500.0,0.00016548,2]
[403081206,1769135434957,-360.29708276,0.000166,2]
[403081207,1769135434968,-500.0,0.00016602,2]
[403081208,1769135434978,-500.0,0.00016657,2]
[403081209,1769135434989,-166.66,0.0001668,2]
[403081210,1769135435001,-456.88,0.0001669,2]
[403081211,1769135435012,-500.0,0.00016712,2]
[403081212,1769135435023,-187.78006525,0.00016756,2]
[403081213,1769135435033,-918.64355495,0.00016756,2]
[403081214,1769135435043,-11020.67567361,0.00016763,2]
[403081215,1769135435052,-331.87443534,0.00016767,2]
[403081216,1769135435062,-164.5,0.0001677,2]
[403081217,1769135435072,-14397.38240789,0.00016796,2]
[403081218,1769135435082,-433.0,0.00016922,2]
[403081219,1769135435091,-250.0,0.00017,2]
[403081220,1769135435101,-166.66,0.00017004,2]
[403081221,1769135435112,-3210.0,0.00017029,2]
[403081222,1769135435123,-334.5472959,0.00017029,2]
[403081223,1769135435133,-696.96,0.00017114,2]
[403081224,1769135435143,-11020.67567361,0.00017142,2]
[403081225,1769135435153,-14397.38240789,0.00017164,2]
[403081226,1769135435163,-200.0,0.00017174,2]
[403081227,1769135435173,-166.67,0.00017249,2]
[403081228,1769135435183,-194.72792766,0.00017304,2]
[403081229,1769135435193,-952.63336648,0.00017304,2]
[403081230,1769135435203,-1059.36352489,0.00017318,2]
[403081231,1769135435213,-205.64372528,0.00017387,2]
[403081232,1769135435224,-501.83431676,0.00017387,2]
[403081233,1769135435236,-200.0,0.00017474,2]
[403081234,1769135435246,-456.88,0.00017485,2]
[403081235,1769135435259,-587.0,0.00017488,2]
[403081236,1769135435269,-3303.75064,0.000175,3]
[403081237,1769135435280,-1604.34016002,0.000175,2]
[403081238,1769135435292,-11020.67567361,0.00017521,2]
[403081239,1769135435302,-14397.38240789,0.00017532,2]
[403081240,1769135435311,-587.0,0.00017533,2]
[403081241,1769135435323,-512.55486241,0.00017555,2]
[403081242,1769135435333,-587.0,0.00017573,2]
[403081243,1769135435344,-200.0,0.00017588,2]
[403081244,1769135435355,-587.0,0.00017598,2]
[403081245,1769135435365,-200.0,0.00017599,2]
[403081246,1769135435375,-2351.0,0.00017652,2]
[403081247,1769135435385,-15149.4971433,0.0001766,2]
[403081248,1769135435396,-216.05329828,0.00017673,2]
[403081249,1769135435407,-500.74204759,0.00017673,2]
[403081250,1769135435417,-501.79616447,0.00017673,2]
[403081251,1769135435428,-502.05267023,0.00017673,2]
[403081252,1769135435438,-500.0,0.00017673,2]
[403081253,1769135435451,-491.49880171,0.00017673,2]
[403081254,1769135435463,-500.0,0.00017673,2]
[403081255,1769135435475,-500.0,0.00017673,2]
[403081256,1769135435485,-502.54068857,0.00017673,2]
[403081257,1769135435495,-515.55099899,0.00017673,2]
[403081258,1769135435505,-500.0,0.00017673,2]
[403081259,1769135435515,-500.0,0.00017673,2]
[403081260,1769135435525,-500.0,0.00017673,2]
[403081261,1769135435535,-503.59509145,0.00017673,2]
[403081262,1769135435544,-500.0,0.00017673,2]
[403081263,1769135435554,-226.64455639,0.00017673,2]
[403081264,1769135435564,-301.24845847,0.00017673,2]
[403081265,1769135435574,-502.95752889,0.00017673,2]
[403081266,1769135435584,-547.5745752,0.00017673,2]
[403081267,1769135435594,-1000.0,0.00017707,2]
[403081268,1769135435603,-587.0,0.00017715,2]
[403081269,1769135435613,-1000.0,0.00017718,2]
[403081270,1769135435624,-1000.0,0.00017719,2]
[403081271,1769135435634,-1000.0,0.00017725,2]
[403081272,1769135435644,-1000.0,0.00017726,2]
[403081273,1769135435654,-1000.0,0.00017727,2]
[403081274,1769135435664,-150.0,0.00017729,2]
[403081275,1769135435673,-150.0,0.00017737,2]
[403081276,1769135435683,-1000.0,0.00017739,2]
[403081277,1769135435693,-587.0,0.00017741,2]
[403081278,1769135435702,-1000.0,0.00017742,2]
[403081279,1769135435712,-1000.0,0.00017743,2]
[403081280,1769135435722,-1000.0,0.00017752,2]
[403081281,1769135435733,-150.0,0.00017754,2]
[403081282,1769135435743,-1000.0,0.00017758,2]
[403081283,1769135435753,-150.0,0.00017762,2]
[403081284,1769135435764,-587.0,0.00017768,2]
[403081285,1769135435774,-1000.0,0.00017768,2]
[403081286,1769135435786,-1000.0,0.00017774,2]
[403081287,1769135435796,-150.0,0.00017785,2]
[403081288,1769135435807,-1000.0,0.00017787,2]
[403081289,1769135435818,-150.0,0.00017795,2]
[403081290,1769135435828,-150.0,0.00017802,2]
[403081291,1769135435839,-1000.0,0.00017802,2]
[403081292,1769135435850,-150.0,0.00017803,2]
[403081293,1769135435860,-150.0,0.00017805,2]
[403081294,1769135435871,-186.33928744,0.00017806,2]
[403081295,1769135435881,-150.0,0.00017808,2]
[403081296,1769135435891,-500.0,0.00017808,2]
[403081297,1769135435901,-1000.0,0.0001781,2]
[403081298,1769135435912,-487.0,0.0001781,2]
[403081299,1769135435922,-487.0,0.0001781,2]
[403081300,1769135435933,-576.35,0.0001781,2]
[403081301,1769135435942,-1000.0,0.00017811,2]
[403081302,1769135435952,-150.0,0.00017819,2]
[403081303,1769135435962,-1000.0,0.00017819,2]
[403081304,1769135435971,-1000.0,0.00017821,2]
[403081305,1769135435981,-150.0,0.00017822,2]
[403081306,1769135435991,-587.0,0.00017823,2]
[403081307,1769135436001,-1000.0,0.00017824,2]
[403081308,1769135436011,-5804.18570324,0.0001783,2]
[403081309,1769135436021,-740.84485069,0.00017834,2]
[403081310,1769135436031,-1000.0,0.00017837,2]
[403081311,1769135436041,-150.0,0.00017848,2]
[403081312,1769135436052,-1000.0,0.00017848,2]
[403081313,1769135436063,-183.01788218,0.00017852,2]
[403081314,1769135436074,-987.88080104,0.00017852,2]
[403081315,1769135436084,-1000.46999968,0.0001786,2]
[403081316,1769135436094,-208.87535461,0.00017861,2]
[403081317,1769135436103,-150.0,0.00017863,2]
[403081318,1769135436113,-500.0,0.00017863,2]
[403081319,1769135436124,-150.0,0.00017866,2]
[403081320,1769135436135,-150.0,0.00017869,2]
[403081321,1769135436145,-1000.0,0.00017869,2]
[403081322,1769135436154,-1000.0,0.00017869,2]
[403081323,1769135436165,-150.0,0.00017872,2]
[403081324,1769135436175,-1000.0,0.00017874,2]
[403081325,1769135436185,-1000.0,0.00017874,2]
[403081326,1769135436196,-1000.0,0.00017875,2]
[403081327,1769135436207,-150.0,0.00017877,2]
[403081328,1769135436217,-587.0,0.00017882,2]
[403081329,1769135436228,-587.0,0.00017892,2]
[403081330,1769135436239,-160.02622046,0.000179,2]
[403081331,1769135436251,-892.4136079,0.000179,2]
[403081332,1769135436262,-14397.38240789,0.000179,2]
[403081333,1769135436272,-3134.47808389,0.000179,2]
[403081334,1769135436282,-26688.61756159,0.000179,2]
[403081335,1769135436294,-11020.67567361,0.000179,2]
[403081336,1769135436306,-1944.70640945,0.000179,2]
[403081337,1769135436316,-12126.0094022,0.000179,2]
[403081338,1769135436328,-150.0,0.00017901,2]
[403081339,1769135436338,-150.0,0.00017918,2]
[403081340,1769135436348,-500.0,0.00017918,2]
[403081341,1769135436358,-150.0,0.00017925,2]
[403081342,1769135436369,-1000.0,0.00017929,2]
[403081343,1769135436380,-1000.0,0.00017929,2]
[403081344,1769135436390,-150.0,0.00017931,2]
[403081345,1769135436400,-1000.0,0.00017933,2]
[403081346,1769135436410,-150.0,0.00017938,2]
[403081347,1769135436419,-150.0,0.00017939,2]
[403081348,1769135436429,-1000.0,0.00017949,2]
[403081349,1769135436439,-2000.0,0.0001795,2]
[403081350,1769135436449,-1273.06,0.0001795,2]
[403081351,1769135436459,-374.36,0.0001795,2]
[403081352,1769135436468,-150.0,0.00017952,2]
[403081353,1769135436478,-1000.0,0.0001796,2]
[403081354,1769135436488,-1000.0,0.00017961,2]
[403081355,1769135436497,-1000.0,0.00017962,2]
[403081356,1769135436507,-150.0,0.00017964,2]
[403081357,1769135436517,-882.99724357,0.00017967,2]
[403081358,1769135436526,-150.0,0.00017972,2]
[403081359,1769135436536,-500.0,0.00017972,2]
[403081360,1769135436545,-30966.0,0.00017973,2]
[403081361,1769135436555,-158.43154414,0.00017975,2]
[403081362,1769135436565,-740.84485069,0.00017978,2]
[403081363,1769135436574,-223.37683951,0.0001798,2]
[403081364,1769135436583,-150.0,0.00017987,2]
[403081365,1769135436593,-150.0,0.0001799,2]
[403081366,1769135436603,-196.23149261,0.0001799,2]
[403081367,1769135436614,-202.10783548,0.0001799,2]
[403081368,1769135436625,-202.10783548,0.0001799,2]
[403081369,1769135436635,-202.10783548,0.0001799,2]
[403081370,1769135436646,-150.0,0.00017991,2]
[403081371,1769135436656,-151.0,0.00017997,2]
[403081372,1769135436666,-150.0,0.00017999,2]
[403081373,1769135436676,-170.76369751,0.00017999,2]
[403081374,1769135436687,-500.0,0.00017999,2]
[403081375,1769135436697,-500.0,0.00017999,2]
[403081376,1769135436710,-500.0,0.00017999,2]
[403081377,1769135436720,-500.0,0.00017999,2]
[403081378,1769135436730,-534.45,0.00017999,2]
[403081379,1769135436740,-534.45,0.00017999,2]
[403081380,1769135436750,-534.45,0.00017999,2]
[403081381,1769135436760,-534.45,0.00017999,2]
[403081382,1769135436771,-11890.77757647,0.00017999,2]
[403081383,1769135436781,-300.0,0.00017999,2]
[403081384,1769135436791,-500.0,0.00017999,2]
[403081385,1769135436802,-500.0,0.00017999,2]
[403081386,1769135436813,-500.0,0.00017999,2]
[403081387,1769135436823,-500.0,0.00017999,2]
[403081388,1769135436835,-477.17293937,0.00017999,2]
[403081389,1769135436846,-881642.66858144,0.00018,2]
[403081390,1769135436856,-1190.3363288,0.00018,2]
[403081391,1769135436866,-213.0,0.00018,2]
[403081392,1769135436876,-38155.45193125,0.00018,2]
[403081393,1769135436936,-9032.55709336,0.00018,2]
[403081394,1769135436948,-6548.68384523,0.00018,2]
[403081395,1769135436962,-37410.94363005,0.00018,2]